[Event "*** Titled Tuesday 3|2 Blitz"]
[Site "Chess.com"]
[Date "2016.08.02"]
[Round "9"]
[White "brauliocuarta"]
[Black "josiwales"]
[Result "0-1"]
[WhiteElo "2047"]
[BlackElo "2188"]
[TimeControl "180+2"]
[EndTime "13:01:13 PDT"]
[Termination "josiwales won on time"]

1. d4 {[%clk 0:02:41]} 1... f5 {[%clk 0:02:56.4]} 2. Bg5 {[%clk 0:02:40.6]} 2...
g6 {[%clk 0:02:55.8]} 3. Nc3 {[%clk 0:02:40.6]} 3... Bg7 {[%clk 0:02:56.7]} 4.
e3 {[%clk 0:02:41.8]} 4... h6 {[%clk 0:02:57.7]} 5. Bf4 {[%clk 0:02:36.8]} 5...
Nf6 {[%clk 0:02:58.1]} 6. Be5 {[%clk 0:02:24.4]} 6... O-O {[%clk 0:02:53.6]} 7.
Bxf6 {[%clk 0:02:25]} 7... Bxf6 {[%clk 0:02:52.4]} 8. Bc4+ {[%clk 0:02:24.2]}
8... Kh7 {[%clk 0:02:51.1]} 9. Qf3 {[%clk 0:02:23.5]} 9... c6 {[%clk 0:02:51.4]}
10. h4 {[%clk 0:02:23.7]} 10... d5 {[%clk 0:02:52.2]} 11. Bd3 {[%clk 0:02:21]}
11... e5 {[%clk 0:02:53.1]} 12. dxe5 {[%clk 0:02:18.7]} 12... Bxe5 {[%clk
0:02:53.1]} 13. h5 {[%clk 0:01:37.4]} 13... g5 {[%clk 0:02:48.8]} 14. g4 {[%clk
0:01:36.4]} 14... Bxc3+ {[%clk 0:02:33.2]} 15. bxc3 {[%clk 0:01:38.3]} 15... Qf6
{[%clk 0:02:34.1]} 16. Kd2 {[%clk 0:01:19.6]} 16... Kg7 {[%clk 0:02:32.2]} 17.
gxf5 {[%clk 0:00:36.5]} 17... Bxf5 {[%clk 0:02:27.2]} 18. Bxf5 {[%clk
0:00:32.1]} 18... Qxf5 {[%clk 0:02:29.1]} 19. Qxf5 {[%clk 0:00:22.6]} 19... Rxf5
{[%clk 0:02:31]} 20. Ke2 {[%clk 0:00:22.9]} 20... Nd7 {[%clk 0:02:30.5]} 21. Rb1
{[%clk 0:00:24.4]} 21... Nc5 {[%clk 0:02:30.9]} 22. Nf3 {[%clk 0:00:23.7]} 22...
Re8 {[%clk 0:02:31.8]} 23. Nd4 {[%clk 0:00:23.4]} 23... Rf6 {[%clk 0:02:31.7]}
24. Rhg1 {[%clk 0:00:13.8]} 24... Re7 {[%clk 0:02:31.9]} 25. Rbf1 {[%clk
0:00:11.1]} 25... Ref7 {[%clk 0:02:25.6]} 26. f4 {[%clk 0:00:09.1]} 26... Ne4
{[%clk 0:02:24.2]} 27. f5 {[%clk 0:00:07.4]} 27... Nxc3+ {[%clk 0:02:24.3]} 28.
Kd3 {[%clk 0:00:08.1]} 28... Ne4 {[%clk 0:02:25.4]} 29. Ne6+ {[%clk 0:00:08.1]}
29... Kg8 {[%clk 0:02:26.4]} 30. Nd4 {[%clk 0:00:07.5]} 30... c5 {[%clk
0:02:26.1]} 31. Ne6 {[%clk 0:00:06.6]} 31... Rxf5 {[%clk 0:02:25.6]} 32. Rxf5
{[%clk 0:00:06.4]} 32... Rxf5 {[%clk 0:02:27.5]} 33. Nf4 {[%clk 0:00:06.1]}
33... Kf7 {[%clk 0:02:24.3]} 34. Ng6 {[%clk 0:00:06.1]} 34... Rf2 {[%clk
0:02:20.6]} 35. Ne5+ {[%clk 0:00:02]} 35... Ke6 {[%clk 0:02:21.3]} 0-1

[Event "*** Titled Tuesday 3|2 Blitz"]
[Site "Chess.com"]
[Date "2016.08.02"]
[Round "9"]
[White "DrHolmes13"]
[Black "Usurpov"]
[Result "1-0"]
[WhiteElo "2406"]
[BlackElo "2334"]
[TimeControl "180+2"]
[EndTime "13:01:51 PDT"]
[Termination "DrHolmes13 won by resignation"]

1. d4 {[%clk 0:03:01.9]} 1... Nf6 {[%clk 0:02:55.7]} 2. c4 {[%clk 0:03:02.5]}
2... g6 {[%clk 0:02:55.5]} 3. Nc3 {[%clk 0:03:03.8]} 3... d5 {[%clk 0:02:54.6]}
4. Nf3 {[%clk 0:03:04.1]} 4... Bg7 {[%clk 0:02:55.7]} 5. Qb3 {[%clk 0:03:05.2]}
5... dxc4 {[%clk 0:02:56]} 6. Qxc4 {[%clk 0:03:07.1]} 6... O-O {[%clk
0:02:56.5]} 7. e4 {[%clk 0:03:08.8]} 7... Bg4 {[%clk 0:02:53.8]} 8. Be2 {[%clk
0:03:08.8]} 8... Nfd7 {[%clk 0:02:53.3]} 9. Be3 {[%clk 0:03:07.7]} 9... Nb6
{[%clk 0:02:52.4]} 10. Qd3 {[%clk 0:03:07.4]} 10... Bxf3 {[%clk 0:02:26]} 11.
gxf3 {[%clk 0:03:01]} 11... e6 {[%clk 0:02:11.4]} 12. h4 {[%clk 0:02:58.6]}
12... Nc6 {[%clk 0:02:11.4]} 13. O-O-O {[%clk 0:02:57.5]} 13... e5 {[%clk
0:01:45.1]} 14. d5 {[%clk 0:02:46.4]} 14... Nd4 {[%clk 0:01:43.8]} 15. h5 {[%clk
0:02:36.2]} 15... c6 {[%clk 0:01:36.9]} 16. hxg6 {[%clk 0:02:36.8]} 16... fxg6
{[%clk 0:01:36.3]} 17. Kb1 {[%clk 0:02:30.6]} 17... cxd5 {[%clk 0:01:17.7]} 18.
exd5 {[%clk 0:02:29.7]} 18... Rc8 {[%clk 0:01:13.3]} 19. Rc1 {[%clk 0:02:00]}
19... Nc4 {[%clk 0:00:58.7]} 20. Ne4 {[%clk 0:01:47.8]} 20... b5 {[%clk
0:00:40]} 21. d6 {[%clk 0:01:19.4]} 21... Qd7 {[%clk 0:00:24.7]} 22. Ng5 {[%clk
0:01:11.7]} 22... Nxe3 {[%clk 0:00:16.4]} 23. fxe3 {[%clk 0:01:03.6]} 23... Nxe2
{[%clk 0:00:11.4]} 24. Qd5+ {[%clk 0:01:01.7]} 24... Rf7 {[%clk 0:00:11.1]} 25.
Rxc8+ {[%clk 0:00:58.8]} 25... Qxc8 {[%clk 0:00:12.1]} 26. Qxf7+ {[%clk
0:00:59.9]} 1-0

[Event "*** Titled Tuesday 3|2 Blitz"]
[Site "Chess.com"]
[Date "2016.08.02"]
[Round "9"]
[White "LaStreetCmaMaison"]
[Black "GeorgMeier"]
[Result "1-0"]
[WhiteElo "2539"]
[BlackElo "2694"]
[TimeControl "180+2"]
[EndTime "13:01:56 PDT"]
[Termination "LaStreetCmaMaison won by resignation"]

1. b3 {[%clk 0:03:01.9]} 1... d5 {[%clk 0:03:00.2]} 2. Bb2 {[%clk 0:03:02.3]}
2... Nf6 {[%clk 0:03:00.9]} 3. Nf3 {[%clk 0:03:02]} 3... Bf5 {[%clk 0:03:01.1]}
4. e3 {[%clk 0:03:02.9]} 4... e6 {[%clk 0:02:48.4]} 5. Be2 {[%clk 0:03:03.6]}
5... h6 {[%clk 0:02:49.2]} 6. O-O {[%clk 0:03:03.6]} 6... Be7 {[%clk 0:02:49.5]}
7. c4 {[%clk 0:03:04.2]} 7... O-O {[%clk 0:02:50.2]} 8. d4 {[%clk 0:03:03.4]}
8... c6 {[%clk 0:02:51.3]} 9. Nc3 {[%clk 0:03:01.4]} 9... Nbd7 {[%clk
0:02:52.5]} 10. a3 {[%clk 0:02:53.2]} 10... Ne4 {[%clk 0:02:52.1]} 11. Nxe4
{[%clk 0:02:51.6]} 11... Bxe4 {[%clk 0:02:53.1]} 12. Rc1 {[%clk 0:02:52.2]}
12... a5 {[%clk 0:02:52.8]} 13. Qd2 {[%clk 0:02:48.1]} 13... Re8 {[%clk
0:02:46.8]} 14. Rfd1 {[%clk 0:02:47.2]} 14... Bd6 {[%clk 0:02:33.1]} 15. Ne5
{[%clk 0:02:38.7]} 15... Qe7 {[%clk 0:02:18.7]} 16. Nxd7 {[%clk 0:02:31.6]}
16... Qxd7 {[%clk 0:02:19.7]} 17. c5 {[%clk 0:02:32.6]} 17... Bc7 {[%clk
0:02:20.4]} 18. Bc3 {[%clk 0:02:27.1]} 18... Qe7 {[%clk 0:02:05.9]} 19. f3
{[%clk 0:02:11.8]} 19... Bg6 {[%clk 0:02:05.3]} 20. f4 {[%clk 0:02:10.7]} 20...
f6 {[%clk 0:01:52.6]} 21. Rf1 {[%clk 0:02:08.6]} 21... e5 {[%clk 0:01:32.6]} 22.
dxe5 {[%clk 0:02:04.3]} 22... fxe5 {[%clk 0:01:34.5]} 23. f5 {[%clk 0:02:04.8]}
23... Bf7 {[%clk 0:01:34.3]} 24. Bb2 {[%clk 0:02:02.6]} 24... Qg5 {[%clk
0:01:27.6]} 25. Rf3 {[%clk 0:01:55.4]} 25... e4 {[%clk 0:01:13.7]} 26. Rf2
{[%clk 0:01:56.5]} 26... h5 {[%clk 0:01:14]} 27. Rcf1 {[%clk 0:01:54.2]} 27...
h4 {[%clk 0:01:15.1]} 28. f6 {[%clk 0:01:52.4]} 28... g6 {[%clk 0:01:15.2]} 29.
Bd1 {[%clk 0:01:51.6]} 29... Re6 {[%clk 0:01:07.9]} 30. Bd4 {[%clk 0:01:49.4]}
30... Rae8 {[%clk 0:01:06.6]} 31. Qe1 {[%clk 0:01:45.1]} 31... Rb8 {[%clk
0:00:49.3]} 32. Rf4 {[%clk 0:01:43.2]} 32... Bxf4 {[%clk 0:00:49.2]} 33. Rxf4
{[%clk 0:01:44.2]} 33... h3 {[%clk 0:00:48.8]} 34. Bg4 {[%clk 0:01:34.9]} 34...
hxg2 {[%clk 0:00:43]} 35. Bxe6 {[%clk 0:01:35.1]} 35... Bxe6 {[%clk 0:00:43.9]}
36. f7+ {[%clk 0:01:34.5]} 36... Bxf7 {[%clk 0:00:44.6]} 37. Bf6 {[%clk
0:01:32.3]} 1-0

[Event "*** Titled Tuesday 3|2 Blitz"]
[Site "Chess.com"]
[Date "2016.08.02"]
[Round "9"]
[White "Blitzstream"]
[Black "yian123"]
[Result "0-1"]
[WhiteElo "2444"]
[BlackElo "2392"]
[TimeControl "180+2"]
[EndTime "13:02:23 PDT"]
[Termination "yian123 won by resignation"]

1. e4 {[%clk 0:03:01.9]} 1... e5 {[%clk 0:03:00]} 2. Nf3 {[%clk 0:03:02.9]} 2...
Nc6 {[%clk 0:03:00.3]} 3. d4 {[%clk 0:03:03.9]} 3... exd4 {[%clk 0:03:00.8]} 4.
Nxd4 {[%clk 0:03:05.8]} 4... Bb4+ {[%clk 0:03:01.7]} 5. c3 {[%clk 0:03:05.6]}
5... Bc5 {[%clk 0:03:02.8]} 6. Nf5 {[%clk 0:02:45.6]} 6... g6 {[%clk 0:02:58.9]}
7. Be3 {[%clk 0:02:32.8]} 7... Bxe3 {[%clk 0:02:52.2]} 8. Nxe3 {[%clk
0:02:32.6]} 8... Nf6 {[%clk 0:02:53.1]} 9. Nd2 {[%clk 0:02:30.9]} 9... Qe7
{[%clk 0:02:52.7]} 10. Qc2 {[%clk 0:02:21.5]} 10... d5 {[%clk 0:02:52.3]} 11.
exd5 {[%clk 0:01:27.3]} 11... Nxd5 {[%clk 0:02:52.5]} 12. O-O-O {[%clk
0:01:19.3]} 12... Nxe3 {[%clk 0:02:51.4]} 13. fxe3 {[%clk 0:01:21.2]} 13... Bd7
{[%clk 0:02:46]} 14. Bc4 {[%clk 0:01:04.6]} 14... O-O-O {[%clk 0:02:42.3]} 15.
Bd5 {[%clk 0:01:03.9]} 15... Ne5 {[%clk 0:02:40]} 16. Rhe1 {[%clk 0:00:41.6]}
16... c6 {[%clk 0:02:34.1]} 17. Be4 {[%clk 0:00:29.7]} 17... Be6 {[%clk
0:02:21.6]} 18. Qa4 {[%clk 0:00:28.7]} 18... Qc5 {[%clk 0:02:18]} 19. Nb3 {[%clk
0:00:27.8]} 19... Rxd1+ {[%clk 0:02:01.4]} 20. Kxd1 {[%clk 0:00:29.7]} 20...
Rd8+ {[%clk 0:01:58.8]} 21. Kc2 {[%clk 0:00:30.9]} 21... Qc4 {[%clk 0:01:57.5]}
22. Qxc4 {[%clk 0:00:31]} 22... Bxc4 {[%clk 0:01:58.4]} 23. Rd1 {[%clk
0:00:25.6]} 23... Rxd1 {[%clk 0:01:56.1]} 24. Kxd1 {[%clk 0:00:26.7]} 24...
Bxb3+ {[%clk 0:01:57.5]} 25. axb3 {[%clk 0:00:27.5]} 25... Kc7 {[%clk
0:01:58.9]} 26. Ke2 {[%clk 0:00:28.6]} 26... a5 {[%clk 0:01:59.5]} 27. Bc2
{[%clk 0:00:29.5]} 27... c5 {[%clk 0:02:00.3]} 28. g3 {[%clk 0:00:29.2]} 28...
Kd6 {[%clk 0:01:58.9]} 29. h4 {[%clk 0:00:30.4]} 29... h6 {[%clk 0:01:59.4]} 30.
Bd1 {[%clk 0:00:31.6]} 30... g5 {[%clk 0:01:59.6]} 31. hxg5 {[%clk 0:00:32]}
31... hxg5 {[%clk 0:02:00.4]} 32. Kd2 {[%clk 0:00:33.4]} 32... c4 {[%clk
0:01:57.9]} 33. Ke2 {[%clk 0:00:27.9]} 33... Nd3 {[%clk 0:01:54.7]} 34. b4
{[%clk 0:00:08.2]} 34... axb4 {[%clk 0:01:51.7]} 35. b3 {[%clk 0:00:09.3]} 35...
bxc3 {[%clk 0:01:50.4]} 36. bxc4 {[%clk 0:00:10.1]} 36... Ne5 {[%clk 0:01:51.8]}
37. Bb3 {[%clk 0:00:09.4]} 37... Kc5 {[%clk 0:01:53.1]} 38. Ba2 {[%clk 0:00:11]}
38... f6 {[%clk 0:01:51.6]} 39. g4 {[%clk 0:00:09.3]} 39... b6 {[%clk
0:01:48.9]} 40. Bb3 {[%clk 0:00:09.8]} 40... Kb4 {[%clk 0:01:49.7]} 41. Ba2
{[%clk 0:00:10.7]} 41... Nxg4 {[%clk 0:01:49.8]} 42. Kd3 {[%clk 0:00:11.9]}
42... Ne5+ {[%clk 0:01:50.7]} 43. Kc2 {[%clk 0:00:13.3]} 43... Nxc4 {[%clk
0:01:51.3]} 0-1

[Event "*** Titled Tuesday 3|2 Blitz"]
[Site "Chess.com"]
[Date "2016.08.02"]
[Round "9"]
[White "oggy1984"]
[Black "Tash_Boy"]
[Result "1-0"]
[WhiteElo "2322"]
[BlackElo "2300"]
[TimeControl "180+2"]
[EndTime "13:02:32 PDT"]
[Termination "oggy1984 won by checkmate"]

1. e4 {[%clk 0:03:01.9]} 1... e6 {[%clk 0:03:00.2]} 2. d4 {[%clk 0:03:02.1]}
2... d5 {[%clk 0:03:00]} 3. exd5 {[%clk 0:03:04]} 3... exd5 {[%clk 0:03:00.5]}
4. Nf3 {[%clk 0:03:05.9]} 4... Nc6 {[%clk 0:03:00.2]} 5. Bd3 {[%clk 0:03:07]}
5... Bd6 {[%clk 0:02:56.9]} 6. c3 {[%clk 0:03:06.6]} 6... Nge7 {[%clk 0:02:57]}
7. O-O {[%clk 0:03:07.4]} 7... Bg4 {[%clk 0:02:52.6]} 8. Re1 {[%clk 0:03:08.8]}
8... Qd7 {[%clk 0:02:51.8]} 9. Na3 {[%clk 0:03:09.8]} 9... O-O-O {[%clk
0:02:50.1]} 10. Nb5 {[%clk 0:03:10.5]} 10... f6 {[%clk 0:02:48.9]} 11. Nxd6+
{[%clk 0:03:10.6]} 11... Qxd6 {[%clk 0:02:46.3]} 12. h3 {[%clk 0:03:10.7]} 12...
Bd7 {[%clk 0:02:43.5]} 13. b4 {[%clk 0:03:11.2]} 13... g5 {[%clk 0:02:40.9]} 14.
b5 {[%clk 0:03:08.4]} 14... Na5 {[%clk 0:02:41]} 15. a4 {[%clk 0:03:08.5]} 15...
g4 {[%clk 0:01:30]} 16. Ba3 {[%clk 0:03:08.1]} 16... Qf4 {[%clk 0:01:28.8]} 17.
Qd2 {[%clk 0:03:04.3]} 17... Qxd2 {[%clk 0:01:26.4]} 18. Nxd2 {[%clk 0:03:06.2]}
18... Ng6 {[%clk 0:01:27]} 19. hxg4 {[%clk 0:02:58.2]} 19... Bxg4 {[%clk
0:01:20.4]} 20. Bb4 {[%clk 0:02:51.8]} 20... Nf4 {[%clk 0:01:18.4]} 21. Bf1
{[%clk 0:02:44.3]} 21... b6 {[%clk 0:01:17.4]} 22. Be7 {[%clk 0:02:31.8]} 22...
Rd7 {[%clk 0:01:09.4]} 23. Bxf6 {[%clk 0:02:31.8]} 23... Rg8 {[%clk 0:01:10.5]}
24. Re3 {[%clk 0:02:12.1]} 24... Rf7 {[%clk 0:01:00.8]} 25. Bh4 {[%clk
0:01:52.8]} 25... h5 {[%clk 0:00:26.4]} 26. Rae1 {[%clk 0:01:49.6]} 26... Kb7
{[%clk 0:00:24.9]} 27. Re7 {[%clk 0:01:33.5]} 27... Rf5 {[%clk 0:00:15.9]} 28.
Rh7 {[%clk 0:01:19]} 28... Bh3 {[%clk 0:00:14.5]} 29. Bg3 {[%clk 0:01:16.6]}
29... Bg4 {[%clk 0:00:12.9]} 30. Ree7 {[%clk 0:01:15.8]} 30... Rc8 {[%clk
0:00:12.9]} 31. Rhf7 {[%clk 0:01:12.4]} 31... Ng6 {[%clk 0:00:12.5]} 32. Rxc7+
{[%clk 0:01:10.8]} 32... Rxc7 {[%clk 0:00:12.2]} 33. Rxc7+ {[%clk 0:01:12.7]}
33... Ka8 {[%clk 0:00:13.4]} 34. Rc8+ {[%clk 0:01:10.3]} 34... Kb7 {[%clk
0:00:14]} 35. Rb8# {[%clk 0:01:11.4]} 1-0

[Event "*** Titled Tuesday 3|2 Blitz"]
[Site "Chess.com"]
[Date "2016.08.02"]
[Round "9"]
[White "Alexander_Moskalenko"]
[Black "FairChess_on_YouTube"]
[Result "1-0"]
[WhiteElo "2655"]
[BlackElo "2698"]
[TimeControl "180+2"]
[EndTime "13:03:17 PDT"]
[Termination "Alexander_Moskalenko won by resignation"]

1. d4 {[%clk 0:03:01.9]} 1... d5 {[%clk 0:03:00.3]} 2. Bf4 {[%clk 0:03:02.6]}
2... Nf6 {[%clk 0:03:00.8]} 3. e3 {[%clk 0:03:03.8]} 3... c5 {[%clk 0:03:01.7]}
4. Nf3 {[%clk 0:03:03.3]} 4... Nc6 {[%clk 0:03:02.6]} 5. c3 {[%clk 0:03:02.4]}
5... g6 {[%clk 0:03:02.7]} 6. Nbd2 {[%clk 0:03:00.7]} 6... Bg7 {[%clk
0:03:03.9]} 7. h3 {[%clk 0:03:01.6]} 7... O-O {[%clk 0:03:04.9]} 8. Be2 {[%clk
0:03:01.3]} 8... Nd7 {[%clk 0:03:05.8]} 9. O-O {[%clk 0:03:00.7]} 9... e5 {[%clk
0:03:06.9]} 10. dxe5 {[%clk 0:03:01.9]} 10... Ndxe5 {[%clk 0:03:08.5]} 11. Nxe5
{[%clk 0:02:53.2]} 11... Nxe5 {[%clk 0:03:09.6]} 12. Nf3 {[%clk 0:02:54.8]}
12... Nc6 {[%clk 0:03:09.8]} 13. Qb3 {[%clk 0:02:53.7]} 13... Qb6 {[%clk
0:03:09]} 14. Qxb6 {[%clk 0:02:46.9]} 14... axb6 {[%clk 0:03:10.9]} 15. Rfd1
{[%clk 0:02:48.6]} 15... Be6 {[%clk 0:03:08.8]} 16. Bc7 {[%clk 0:02:49.8]} 16...
Rfc8 {[%clk 0:02:59.7]} 17. Bxb6 {[%clk 0:02:47]} 17... Nb8 {[%clk 0:02:57.2]}
18. Bb5 {[%clk 0:02:39.5]} 18... Bd7 {[%clk 0:02:40.2]} 19. a4 {[%clk
0:02:40.6]} 19... Bxb5 {[%clk 0:02:15.6]} 20. axb5 {[%clk 0:02:41]} 20... Rxa1
{[%clk 0:02:17.5]} 21. Rxa1 {[%clk 0:02:42.7]} 21... Nd7 {[%clk 0:02:19.1]} 22.
Ba7 {[%clk 0:02:36.7]} 22... Ra8 {[%clk 0:02:19.7]} 23. g4 {[%clk 0:02:29.4]}
23... Nb6 {[%clk 0:02:07.9]} 24. Nd2 {[%clk 0:02:07.2]} 24... Nc8 {[%clk
0:01:50.7]} 25. b6 {[%clk 0:02:07.5]} 25... Nxb6 {[%clk 0:01:52.3]} 26. Ra3
{[%clk 0:02:01.5]} 26... Nc4 {[%clk 0:01:39.3]} 27. Nxc4 {[%clk 0:01:59.1]}
27... dxc4 {[%clk 0:01:41.2]} 28. Bxc5 {[%clk 0:02:01]} 28... Rxa3 {[%clk
0:01:40.1]} 29. Bxa3 {[%clk 0:02:02.2]} 29... f5 {[%clk 0:01:40.8]} 30. Kg2
{[%clk 0:01:51.9]} 30... Kf7 {[%clk 0:01:32.2]} 31. f4 {[%clk 0:01:49.3]} 31...
Ke6 {[%clk 0:01:32]} 32. Kf3 {[%clk 0:01:50.9]} 32... Kd5 {[%clk 0:01:32.9]} 33.
Be7 {[%clk 0:01:39.8]} 33... Ke6 {[%clk 0:01:24]} 34. Bb4 {[%clk 0:01:36.9]}
34... Kd5 {[%clk 0:01:25.4]} 35. g5 {[%clk 0:01:25.9]} 35... h5 {[%clk
0:01:20.5]} 36. h4 {[%clk 0:01:26.3]} 36... Bh8 {[%clk 0:01:18.6]} 37. Bf8
{[%clk 0:01:23.3]} 37... b5 {[%clk 0:01:12.8]} 38. Bb4 {[%clk 0:01:23.2]} 38...
Bg7 {[%clk 0:01:06.9]} 39. Ba3 {[%clk 0:01:23.9]} 39... Bh8 {[%clk 0:00:30.7]}
40. Bf8 {[%clk 0:01:24.9]} 40... Ke6 {[%clk 0:00:32.2]} 41. e4 {[%clk
0:01:26.2]} 41... Kf7 {[%clk 0:00:33.7]} 42. Bc5 {[%clk 0:01:23.5]} 42... fxe4+
{[%clk 0:00:26.5]} 43. Kxe4 {[%clk 0:01:22.4]} 43... Ke6 {[%clk 0:00:28]} 44.
Bd4 {[%clk 0:00:52.6]} 44... Bxd4 {[%clk 0:00:27.5]} 45. Kxd4 {[%clk 0:00:54.5]}
45... Kf5 {[%clk 0:00:28.5]} 46. Ke3 {[%clk 0:00:55.7]} 46... Kg4 {[%clk
0:00:26.7]} 47. Ke4 {[%clk 0:00:57.2]} 47... Kxh4 {[%clk 0:00:25.9]} 48. Kf3
{[%clk 0:00:58.8]} 1-0

[Event "*** Titled Tuesday 3|2 Blitz"]
[Site "Chess.com"]
[Date "2016.08.02"]
[Round "9"]
[White "Astaneh"]
[Black "Saitama_Hero"]
[Result "1-0"]
[WhiteElo "2481"]
[BlackElo "2211"]
[TimeControl "180+2"]
[EndTime "13:03:20 PDT"]
[Termination "Astaneh won by checkmate"]

1. e4 {[%clk 0:03:01.9]} 1... c5 {[%clk 0:02:58.5]} 2. Nc3 {[%clk 0:02:59.2]}
2... Nc6 {[%clk 0:02:53]} 3. Nf3 {[%clk 0:02:55.8]} 3... Nf6 {[%clk 0:02:50.3]}
4. b3 {[%clk 0:02:54.7]} 4... g6 {[%clk 0:02:46.6]} 5. Bb2 {[%clk 0:02:55.8]}
5... Bg7 {[%clk 0:02:46.6]} 6. Nd5 {[%clk 0:02:57.2]} 6... O-O {[%clk
0:02:45.3]} 7. Nxf6+ {[%clk 0:02:58.3]} 7... exf6 {[%clk 0:02:11.4]} 8. Be2
{[%clk 0:02:49.7]} 8... Re8 {[%clk 0:02:10.1]} 9. d3 {[%clk 0:02:50.7]} 9... d5
{[%clk 0:01:54.6]} 10. exd5 {[%clk 0:02:39.4]} 10... Qxd5 {[%clk 0:01:56.5]} 11.
O-O {[%clk 0:02:41]} 11... b6 {[%clk 0:01:58.1]} 12. Nd2 {[%clk 0:02:41.6]}
12... Bb7 {[%clk 0:01:57]} 13. Bf3 {[%clk 0:02:42.6]} 13... Qd7 {[%clk 0:01:58]}
14. Ne4 {[%clk 0:02:41.2]} 14... Re6 {[%clk 0:01:52.9]} 15. Ng3 {[%clk
0:02:17.2]} 15... Rae8 {[%clk 0:01:48.4]} 16. Qd2 {[%clk 0:01:54.4]} 16... h5
{[%clk 0:01:34.1]} 17. h3 {[%clk 0:01:36.8]} 17... f5 {[%clk 0:01:23.1]} 18.
Bxg7 {[%clk 0:01:36.3]} 18... Kxg7 {[%clk 0:01:25]} 19. Rae1 {[%clk 0:01:24.5]}
19... h4 {[%clk 0:01:20.2]} 20. Ne2 {[%clk 0:01:15.9]} 20... Qe7 {[%clk
0:01:02.6]} 21. Kh2 {[%clk 0:00:46.6]} 21... Nd4 {[%clk 0:00:38.7]} 22. Bxb7
{[%clk 0:00:38.5]} 22... Rxe2 {[%clk 0:00:31]} 23. Rxe2 {[%clk 0:00:37.8]} 23...
Qc7+ {[%clk 0:00:31.8]} 24. Kh1 {[%clk 0:00:30.4]} 24... Rxe2 {[%clk 0:00:33.2]}
25. Qd1 {[%clk 0:00:29.5]} 25... Qxb7 {[%clk 0:00:34.5]} 26. c3 {[%clk
0:00:31.1]} 26... Rxa2 {[%clk 0:00:28.3]} 27. cxd4 {[%clk 0:00:32.4]} 27... cxd4
{[%clk 0:00:29.5]} 28. Qe1 {[%clk 0:00:32.9]} 28... Qd5 {[%clk 0:00:29.5]} 29.
Qe7 {[%clk 0:00:33.7]} 29... Rc2 {[%clk 0:00:19.9]} 30. Qxh4 {[%clk 0:00:29.9]}
30... Qxb3 {[%clk 0:00:17.8]} 31. Qxd4+ {[%clk 0:00:30.2]} 31... Kh7 {[%clk
0:00:19]} 32. Re1 {[%clk 0:00:29.7]} 32... Qc3 {[%clk 0:00:17.7]} 33. Qh4+
{[%clk 0:00:27]} 33... Kg7 {[%clk 0:00:18.8]} 34. Re8 {[%clk 0:00:25.1]} 34...
Rc1+ {[%clk 0:00:18.1]} 35. Kh2 {[%clk 0:00:26.5]} 35... Qc7+ {[%clk 0:00:18.1]}
36. f4 {[%clk 0:00:27.8]} 36... Rg1 {[%clk 0:00:03.9]} 37. Qh8# {[%clk
0:00:27.7]} 1-0

[Event "*** Titled Tuesday 3|2 Blitz"]
[Site "Chess.com"]
[Date "2016.08.02"]
[Round "9"]
[White "NTBT_DHS"]
[Black "ftorodent"]
[Result "0-1"]
[WhiteElo "2454"]
[BlackElo "2483"]
[TimeControl "180+2"]
[EndTime "13:03:22 PDT"]
[Termination "ftorodent won by resignation"]

1. d4 {[%clk 0:03:01.9]} 1... d5 {[%clk 0:01:47.8]} 2. c4 {[%clk 0:03:02.5]}
2... e6 {[%clk 0:01:48.3]} 3. Nf3 {[%clk 0:03:03.6]} 3... Be7 {[%clk 0:01:47.2]}
4. g3 {[%clk 0:03:03.9]} 4... Nf6 {[%clk 0:01:46.9]} 5. Bg2 {[%clk 0:03:05.3]}
5... O-O {[%clk 0:01:47.8]} 6. O-O {[%clk 0:03:06.8]} 6... c6 {[%clk 0:01:48.5]}
7. Qc2 {[%clk 0:03:08]} 7... b6 {[%clk 0:01:48.6]} 8. Nbd2 {[%clk 0:03:08.2]}
8... Na6 {[%clk 0:01:46.4]} 9. Ne5 {[%clk 0:03:03.3]} 9... Bb7 {[%clk
0:01:46.4]} 10. Rd1 {[%clk 0:02:51.3]} 10... Rc8 {[%clk 0:01:44.7]} 11. a3
{[%clk 0:02:17.4]} 11... c5 {[%clk 0:01:44.7]} 12. dxc5 {[%clk 0:02:17.3]} 12...
Nxc5 {[%clk 0:01:44.1]} 13. b4 {[%clk 0:02:17.8]} 13... Ncd7 {[%clk 0:01:44.9]}
14. Bb2 {[%clk 0:02:16.5]} 14... Qc7 {[%clk 0:01:44.2]} 15. Nxd7 {[%clk
0:02:11.3]} 15... Nxd7 {[%clk 0:01:44.2]} 16. Rac1 {[%clk 0:02:06.3]} 16... dxc4
{[%clk 0:01:41]} 17. Nxc4 {[%clk 0:01:44.3]} 17... Bxg2 {[%clk 0:01:39.5]} 18.
Kxg2 {[%clk 0:01:44.2]} 18... b5 {[%clk 0:01:34.4]} 19. Na5 {[%clk 0:01:42.4]}
19... Qxc2 {[%clk 0:01:31.6]} 20. Rxc2 {[%clk 0:01:40.5]} 20... Rxc2 {[%clk
0:01:31.2]} 21. Rxd7 {[%clk 0:01:42]} 21... Rxb2 {[%clk 0:01:29.8]} 22. Rxe7
{[%clk 0:01:43.3]} 22... Rxe2 {[%clk 0:01:27.9]} 23. Rxa7 {[%clk 0:01:44.3]}
23... g5 {[%clk 0:01:25.4]} 24. Nc6 {[%clk 0:01:44.1]} 24... Ra2 {[%clk
0:01:18.6]} 25. g4 {[%clk 0:01:39.5]} 25... Kg7 {[%clk 0:01:18.1]} 26. Nd4
{[%clk 0:01:34.3]} 26... Kg6 {[%clk 0:00:53]} 27. Nxb5 {[%clk 0:01:31.2]} 27...
Rc8 {[%clk 0:00:51.3]} 28. Nd4 {[%clk 0:01:14.4]} 28... Rc4 {[%clk 0:00:50.4]}
29. Nf3 {[%clk 0:00:57.7]} 29... Rxg4+ {[%clk 0:00:47.3]} 30. Kf1 {[%clk
0:00:55]} 30... Rf4 {[%clk 0:00:45.2]} 31. Ne5+ {[%clk 0:00:54.9]} 31... Kg7
{[%clk 0:00:45.4]} 32. Nd3 {[%clk 0:00:55.7]} 32... Rf3 {[%clk 0:00:41.4]} 33.
Rd7 {[%clk 0:00:45.9]} 33... Rd2 {[%clk 0:00:40]} 34. Ne5 {[%clk 0:00:25.6]}
34... Rxd7 {[%clk 0:00:35]} 35. Nxd7 {[%clk 0:00:26.8]} 35... Rxa3 {[%clk
0:00:34.5]} 36. b5 {[%clk 0:00:28.2]} 36... Rd3 {[%clk 0:00:30.9]} 37. Ne5
{[%clk 0:00:19.8]} 37... Rb3 {[%clk 0:00:30.7]} 0-1